bitfinex-derivatives/quotes_ETHF0:USTF0_20250502
["timestamp","ask_amount","ask_price","bid_price","bid_amount"]
[1746215441660,1.50867164,1837.2,1837.1,1.08813]
[1746215441861,2.03095164,1837.2,1837.1,1.08813]
[1746215442563,3.11907164,1837.2,1837.1,1.08813]
[1746215442764,2.03095164,1837.2,1837.1,1.08813]
[1746215443164,3.11907164,1837.2,1837.1,1.08813]
[1746215444462,2.03095164,1837.2,1837.1,1.08813]
[1746215444856,3.11907164,1837.2,1837.1,1.08813]
[1746215445057,0.42055164,1837.2,1837.1,1.08813]
[1746215446965,1.50867164,1837.2,1837.1,1.08813]
[1746215448356,1.50867164,1837.2,1837.1,2.82773]
[1746215448564,0.42055164,1837.2,1837.1,2.82773]
[1746215448967,1.50867164,1837.2,1837.1,2.82773]
[1746215449467,0.42055164,1837.2,1837.1,2.82773]
[1746215450569,1.50867164,1837.2,1837.1,2.82773]
[1746215451576,0.42055164,1837.2,1837.1,2.82773]
[1746215451765,1.50867164,1837.2,1837.1,2.82773]
[1746215453677,0.42055164,1837.2,1837.1,2.82773]
[1746215454875,1.50867164,1837.2,1837.1,2.82773]
[1746215455174,0.42055164,1837.2,1837.1,2.82773]
[1746215455374,1.50867164,1837.2,1837.1,2.82773]
[1746215456573,1.0883,1836.9,1836.8,2.75284]
[1746215456776,4.2961,1836.9,1836.8,2.75285]
[1746215456976,0.42055164,1836.9,1836.8,2.75285]
[1746215457178,4.71665164,1836.9,1836.8,2.75285]
[1746215458475,3.62835164,1836.9,1836.8,2.75285]
[1746215458775,0.42055164,1836.9,1836.8,2.75285]
[1746215460372,0.42055164,1836.9,1836.8,5.96065]
[1746215460573,4.29586,1837.3,1837.2,1.08812]
[1746215460980,3.2078,1837.3,1837.2,1.08812]
[1746215461177,6.75641646,1837.6,1837.5,1.08794]
[1746215461477,4.29568,1837.6,1837.5,1.08794]
[1746215461883,3.2078,1837.6,1837.5,1.08794]
[1746215462377,1.08774,1837.9,1837.5,1.08794]
[1746215462678,1.08774,1837.9,1837.8,1.08773]
[1746215462877,4.29554,1837.9,1837.8,1.08773]
[1746215463380,1.08768,1838.0,1837.8,1.08771]
[1746215463581,1.0877,1837.9,1837.8,0.8281]
[1746215463881,4.2955,1837.9,1837.8,0.8281]
[1746215464071,1.0877,1837.9,1837.8,0.8281]
[1746215464469,4.2955,1837.9,1837.8,0.8281]
[1746215464673,4.2955,1837.9,1837.3,1.08802]
[1746215464674,2.71946,1837.8,1837.3,1.08802]
[1746215464870,1.08782,1837.7,1837.6,1.5905]
[1746215465074,4.29562,1837.7,1837.6,1.5905]
[1746215466082,1.088,1837.4,1837.3,0.8281]
[1746215466285,4.2958,1837.4,1837.3,0.8281]
[1746215466782,4.2958,1837.4,1837.3,1.91616]
[1746215466973,3.2078,1837.4,1837.3,0.8281]
[1746215467175,4.2958,1837.4,1837.3,0.8281]
[1746215467376,4.2958,1837.4,1837.3,2.4637]
[1746215467782,3.2078,1837.4,1837.3,3.55176]
[1746215468085,4.2958,1837.4,1837.3,3.55176]
[1746215468281,3.2078,1837.4,1837.3,3.55176]
[1746215468785,4.2958,1837.4,1837.3,3.55176]
[1746215468989,3.2078,1837.4,1837.3,3.55176]
[1746215469377,4.2958,1837.4,1837.3,3.55176]
[1746215470183,4.2958,1837.4,1837.3,2.4637]
[1746215470574,4.2958,1837.4,1837.3,1.6356]
[1746215470777,4.2958,1837.4,1837.0,0.8165]
[1746215470778,1.08818,1837.1,1837.0,0.8165]
[1746215471080,1.08824,1837.0,1836.9,1.5931]
[1746215471391,2.72089,1836.8,1836.0,14.26201843]
[1746215471578,4.29639,1836.4,1836.3,1.5931]
[1746215472277,3.2078,1836.4,1836.3,1.5931]
[1746215472579,7.0128,1836.7,1836.6,1.08847]
[1746215472774,7.43311274,1836.7,1836.6,1.08847]
[1746215472979,3.62811274,1836.7,1836.6,1.08847]
[1746215473484,3.62811274,1836.7,1836.6,2.71017]
[1746215473889,0.42031274,1836.7,1836.6,7.71017]
[1746215474081,4.29596,1837.2,1837.1,1.08818]
[1746215474282,1.0882,1837.1,1837.0,1.08818]
[1746215475087,4.29595,1837.2,1837.1,1.08818]
[1746215475487,1.08818,1837.1,1837.0,1.90269]
[1746215475792,4.29595,1837.2,1837.1,1.08818]
[1746215475989,4.29595,1837.2,1837.1,1.89148]
[1746215476385,4.29595,1837.2,1837.1,0.8033]
[1746215477088,4.29592,1837.2,1837.1,1.89148]
[1746215477287,3.2078,1837.2,1837.1,3.53008]
[1746215477694,4.29592,1837.2,1837.1,3.53008]
[1746215479094,4.29592,1837.2,1837.1,2.4419]
[1746215479390,1.0883,1837.0,1836.9,1.08829]
[1746215479593,6.46630129,1837.0,1836.9,1.08829]
[1746215480093,6.46630129,1837.0,1836.9,2.79869]
[1746215480390,5.37800129,1837.0,1836.9,2.79869]
[1746215480791,6.46624129,1837.0,1836.9,2.79869]
[1746215481588,9.67404129,1837.0,1836.9,1.7104]
[1746215481788,1.08844,1836.7,1836.6,1.08843]
[1746215483093,1.08844,1836.7,1836.6,1.5847]
[1746215484491,2.67514,1836.7,1836.6,1.5847]
[1746215485091,1.08859,1836.4,1836.3,2.81141]
[1746215485491,1.08858,1836.5,1836.4,1.08857]
[1746215485900,4.29632,1836.6,1836.5,1.08853]
[1746215486698,1.08854,1836.5,1836.4,1.08853]
[1746215486896,1.08854,1836.5,1836.4,1.7084]
[1746215487097,2.67604,1836.5,1836.4,1.7084]
[1746215488098,2.67604,1836.5,1836.4,2.79699]
[1746215488300,4.29632,1836.6,1836.5,1.08853]
[1746215488498,3.2078,1836.6,1836.5,2.77513]
[1746215489399,3.58246236,1836.7,1836.6,1.08847]
[1746215490800,4.67087236,1836.7,1836.6,1.08847]
[1746215491197,3.58246236,1836.7,1836.6,1.08847]
[1746215492199,4.29617,1836.8,1836.5,1.6866]
[1746215492405,3.2078,1836.8,1836.7,1.08841]
[1746215492605,4.29615,1836.8,1836.7,1.08841]
[1746215493603,3.2078,1836.8,1836.7,1.08841]
[1746215495909,4.29615,1836.8,1836.7,1.08841]
[1746215496095,3.2078,1836.8,1836.7,1.08841]
[1746215498303,4.29615,1836.8,1836.7,1.08841]
[1746215499108,3.2078,1836.8,1836.7,1.08841]
[1746215500507,3.58246236,1837.1,1837.0,1.08824]
[1746215501304,3.58246236,1837.1,1837.0,2.71234]
[1746215502614,3.58246236,1837.1,1837.0,7.71234]
[1746215503613,2.24267236,1837.1,1837.0,11.47434]
[1746215504310,2.24267236,1837.6,1837.5,1.08794]
[1746215505313,2.24267236,1837.6,1837.5,2.67244]
[1746215508411,6.72752,1837.9,1837.8,1.08776]
[1746215509213,3.2078,1837.9,1837.8,1.08776]
[1746215510812,4.8825,1837.9,1837.8,1.08776]
[1746215511011,1.6747,1837.9,1837.8,1.08776]
[1746215511202,5.9702,1837.9,1837.8,1.08776]
[1746215511401,5.97022,1837.9,1837.8,1.08776]
[1746215512513,1.08782,1837.8,1837.7,1.08779]
[1746215512713,2.74062,1837.8,1837.7,1.08779]
[1746215513412,2.74062,1837.8,1837.6,1.08783]
[1746215513413,1.08786,1837.7,1837.6,1.08783]
[1746215513615,1.08791,1837.6,1837.5,1.0879]
[1746215513813,6.76976,1837.7,1837.6,1.08788]
[1746215514508,1.08792,1837.6,1837.5,1.08789]
[1746215514717,6.76972,1837.7,1837.6,1.08788]
[1746215514915,3.2078,1837.7,1837.6,1.08788]
[1746215515515,3.2078,1837.8,1837.5,3.54236]
[1746215515712,3.2078,1837.8,1837.7,1.08782]
[1746215516514,4.29556,1837.8,1837.7,1.08782]
[1746215516714,3.2078,1837.8,1837.7,1.08782]
[1746215516918,4.29556,1837.8,1837.7,1.08782]
[1746215520218,3.2078,1837.8,1837.7,1.08782]
[1746215520616,6.9698,1838.1,1838.0,1.08764]
[1746215520815,3.2078,1838.1,1838.0,1.08764]
[1746215521120,4.29538,1838.1,1838.0,1.08764]
[1746215521421,3.2078,1838.1,1838.0,1.08764]
[1746215521618,3.2078,1838.1,1838.0,2.71834]
[1746215522316,5.37800129,1838.3,1838.2,1.08753]
[1746215523314,9.67332129,1838.3,1838.2,1.08753]
[1746215523522,9.67332129,1838.3,1838.2,41.88753]
[1746215523820,4.29532,1838.3,1838.2,41.88753]
[1746215524122,4.29532,1838.3,1838.2,40.8]
[1746215524423,4.29532,1838.3,1838.2,41.88753]
[1746215525126,3.2078,1838.3,1838.2,41.88753]
[1746215525319,4.29527,1838.3,1838.2,41.88753]
[1746215525510,4.29527,1838.3,1838.2,40.8]
[1746215525915,4.29527,1838.3,1838.2,42.4549]
[1746215526515,4.29527,1838.3,1838.2,43.54243]
[1746215527020,4.29527,1838.3,1838.2,1.6549]
[1746215527235,4.29527,1838.3,1838.2,2.74243]
[1746215527826,4.29527,1838.3,1838.2,1.6549]
[1746215528424,1.08747,1838.3,1838.2,2.74243]
[1746215528622,1.08747,1838.3,1838.2,1.6549]
[1746215528821,8.00319,1838.5,1838.4,1.08741]
[1746215529229,6.9158,1838.5,1838.4,1.08741]
[1746215529421,8.00315,1838.5,1838.4,1.08741]
[1746215529621,8.00315,1838.5,1838.4,1.5926]
[1746215530215,4.29515,1838.5,1838.4,1.5926]
[1746215530528,4.29515,1838.5,1838.4,2.68001]
[1746215530721,4.29515,1838.5,1838.4,1.5926]
[1746215531025,3.2078,1838.5,1838.4,2.68001]
[1746215531226,4.29515,1838.5,1838.4,2.68001]
[1746215532924,3.2078,1838.5,1838.2,0.8029]
[1746215533125,1.08747,1838.3,1838.2,3.57538]
[1746215533427,4.2952,1838.5,1838.4,1.08741]
[1746215533623,1.08741,1838.4,1838.3,2.77242]
[1746215534224,4.29519,1838.5,1838.4,1.08741]
[1746215534525,4.29519,1838.5,1838.4,2.72631]
[1746215535033,4.29519,1838.5,1838.4,1.6389]
[1746215535222,1.08747,1838.3,1838.2,1.89038]
[1746215535423,1.08773,1837.9,1837.7,2.71952]
[1746215535627,1.08776,1837.8,1837.7,1.648]
[1746215535925,5.92694,1838.0,1837.6,1.08784]
[1746215536129,4.29562,1837.7,1837.6,1.08784]
[1746215536930,3.2078,1837.7,1837.6,2.69404]
[1746215537130,4.29562,1837.7,1837.6,2.69404]
[1746215537432,3.2078,1837.7,1837.6,2.69404]
[1746215537730,4.29562,1837.7,1837.6,1.6062]
[1746215538131,1.08806,1837.3,1836.9,0.02]
[1746215538431,1.08803,1837.4,1837.3,1.08805]
[1746215538628,3.2078,1837.4,1837.3,1.08805]
[1746215538831,4.2958,1837.4,1837.3,1.08805]
[1746215539026,3.2078,1837.4,1837.2,1.08806]
[1746215539227,3.2078,1837.4,1837.3,2.69426]
[1746215539527,4.2958,1837.4,1837.3,2.69426]
[1746215540131,4.2958,1837.4,1837.3,1.6062]
[1746215540625,1.08818,1837.1,1837.0,0.8349]
[1746215540831,1.08818,1837.1,1837.0,1.6365]
[1746215541029,1.0883,1836.9,1836.8,7.24179778]
[1746215541331,1.0883,1836.9,1836.8,50.76664778]
[1746215541527,4.9269,1837.0,1836.8,49.67829778]
[1746215541831,3.2078,1837.0,1836.9,2.7248]
[1746215542634,4.29604,1837.0,1836.9,2.7248]
[1746215542825,3.2078,1837.0,1836.9,2.7248]
[1746215543428,3.708,1837.1,1837.0,1.08824]
[1746215543633,4.79618,1837.1,1837.0,2.76794]
[1746215543835,4.79618,1837.1,1837.0,1.6797]
[1746215544136,1.0883,1836.9,1836.8,7.24179778]
[1746215544323,1.0883,1836.9,1836.8,3.03530999]
[1746215544324,4.2961,1836.9,1836.8,3.03530999]
[1746215544525,9.2961,1836.9,1836.8,3.03530999]
[1746215544835,10.9119,1836.9,1836.8,3.03530999]
[1746215545027,1.08847,1836.6,1836.5,1.6797]
[1746215545228,8.00427,1836.6,1836.5,1.6797]
[1746215545430,6.9158,1836.6,1836.5,2.76823]
[1746215545632,8.00427,1836.6,1836.5,2.76823]
[1746215545924,6.9158,1836.6,1836.5,2.76823]
[1746215546932,3.2078,1836.6,1836.5,2.76823]
[1746215547134,4.29627,1836.6,1836.5,2.76823]
[1746215547332,3.2078,1836.6,1836.5,2.76823]
[1746215547835,4.7963,1836.9,1836.8,1.08835]
[1746215548535,3.708,1836.9,1836.8,1.08835]
[1746215548932,4.7963,1836.9,1836.8,1.08835]
[1746215549133,3.708,1836.9,1836.8,1.08835]
[1746215550334,3.2078,1837.0,1836.9,1.0883]
[1746215550737,1.08827,1837.0,1836.9,1.08828]
[1746215551229,5.37800129,1837.1,1836.7,2.54]
[1746215551436,1.08835,1836.8,1836.7,3.62839]
[1746215552537,1.08849,1836.6,1836.5,1.08849]
[1746215552838,1.08849,1836.6,1836.5,2.71129]
[1746215553029,1.08849,1836.6,1836.5,42.4228]
[1746215553229,1.08849,1836.6,1836.5,1.6228]
[1746215553539,4.29629,1836.6,1836.5,0.8028]
[1746215554438,4.29629,1836.6,1836.5,2.3848]
[1746215555240,3.2078,1836.6,1836.5,3.47333]
[1746215555736,4.29627,1836.6,1836.5,3.47333]
[1746215555943,4.29627,1836.6,1836.5,2.3848]
[1746215556342,3.2078,1836.6,1836.5,3.47333]
[1746215556643,4.29627,1836.6,1836.5,2.3848]
[1746215557240,3.2078,1836.6,1836.5,3.47333]
[1746215559353,1.08841,1836.8,1836.7,1.08841]
[1746215559643,8.00415,1836.9,1836.8,1.08835]
[1746215560051,1.08835,1836.8,1836.7,2.77546]
[1746215560243,8.00415,1836.9,1836.8,1.08835]
[1746215560547,1.08835,1836.8,1836.7,2.7755]
[1746215561047,4.29614,1836.9,1836.8,1.08835]
[1746215561448,4.2961,1836.9,1836.8,1.08835]
[1746215562446,3.2078,1836.9,1836.8,1.08835]
[1746215563153,10.17510129,1837.3,1837.2,1.08812]
[1746215563348,3.709,1837.3,1837.2,1.08812]
[1746215563651,6.9168,1837.6,1837.1,2.72033]
[1746215563852,1.08797,1837.5,1837.4,1.088]
[1746215564051,3.2078,1837.5,1837.2,2.72222]
[1746215564354,3.2078,1837.5,1837.4,1.088]
[1746215564854,1.08789,1837.6,1837.5,1.08789]
[1746215565055,9.67367129,1837.7,1837.6,1.08788]
[1746215565253,1.08789,1837.6,1837.5,1.08791]
[1746215565452,1.08789,1837.6,1837.5,3.61691]
[1746215565754,1.08788,1837.6,1837.5,3.6169]
[1746215566551,8.58580129,1837.7,1837.6,1.08788]
[1746215566763,5.37800129,1837.7,1837.6,1.08788]
[1746215567061,5.37800129,1837.7,1837.6,6.08788]
[1746215567258,5.37800129,1837.7,1837.6,9.79588]
[1746215567459,1.08763,1838.1,1838.0,1.08764]
[1746215567657,3.2078,1838.1,1837.7,1.7372]
[1746215567857,4.29543,1838.1,1838.0,1.08764]
[1746215568161,1.08766,1838.0,1837.9,1.08766]
[1746215568462,1.08766,1838.0,1837.9,42.5372]
[1746215568665,1.08766,1838.0,1837.9,1.7372]
[1746215568962,1.08782,1837.7,1837.6,3.708]
[1746215569164,1.08782,1837.7,1837.6,40.8]
[1746215569663,1.08788,1837.6,1837.5,1.62]
[1746215570164,1.08788,1837.6,1837.5,43.50794]
[1746215570465,1.08788,1837.6,1837.5,42.42]
[1746215570865,1.08788,1837.6,1837.5,44.1012]
[1746215573767,1.08788,1837.6,1837.5,4.38914]
[1746215573963,1.08788,1837.6,1837.5,3.3012]
[1746215574567,5.0,1837.6,1837.1,3.2078]
[1746215574764,4.29597,1837.2,1837.1,1.08818]
[1746215575067,3.2078,1837.4,1837.3,1.08806]
[1746215575271,4.2958,1837.4,1837.3,1.08806]
[1746215575460,3.2078,1837.4,1837.3,1.08806]
[1746215575668,4.2958,1837.4,1837.3,1.08806]
[1746215579168,3.2078,1837.4,1837.3,1.08806]
[1746215579375,4.2958,1837.4,1837.3,1.08806]
[1746215579569,1.08806,1837.3,1837.2,2.74717]
[1746215580176,3.2078,1837.4,1837.3,1.08806]
[1746215580371,3.2078,1837.4,1837.3,2.83516]
[1746215580575,4.2958,1837.4,1837.3,2.83516]
[1746215581274,3.2078,1837.4,1837.3,2.83516]
[1746215581475,4.2958,1837.4,1837.3,2.83516]
[1746215581675,3.2078,1837.4,1837.3,2.83516]
[1746215582175,4.2958,1837.4,1837.3,2.83516]
[1746215583679,1.08815,1837.2,1837.1,1.08814]
[1746215583976,2.6719,1837.3,1837.2,1.08812]
[1746215584472,1.08812,1837.2,1837.1,1.7005]
[1746215584675,1.08812,1837.2,1837.1,2.78868]
[1746215585380,1.08809,1837.3,1837.2,1.08812]
[1746215585579,1.08809,1837.3,1837.2,2.78862]
[1746215585878,3.2078,1837.4,1837.3,1.08806]
[1746215586077,4.2958,1837.4,1837.3,2.80156]
[1746215586278,4.2958,1837.4,1837.3,1.7135]
[1746215586477,2.72043,1837.2,1836.8,1.08829]
[1746215586686,1.08829,1837.0,1836.9,2.80176]
[1746215587179,1.08829,1837.0,1836.9,1.7135]
[1746215587380,1.08829,1837.0,1836.9,2.8018]
[1746215587567,2.83079,1837.0,1836.9,1.7135]
[1746215588280,1.08835,1836.8,1836.7,41.6651]
[1746215588581,1.08835,1836.8,1836.7,43.3786]
[1746215588979,4.29615,1836.8,1836.7,42.5135]
[1746215589181,4.29615,1836.8,1836.7,1.7135]
[1746215589882,5.91425,1836.8,1836.7,1.7135]
[1746215590380,4.29615,1836.8,1836.7,2.80191]
[1746215590777,1.08835,1836.9,1836.8,1.08834]
[1746215591083,1.08835,1836.9,1836.8,2.76854]
[1746215591381,1.0883,1836.9,1836.8,2.7685]
[1746215591780,7.98108,1837.0,1836.9,1.0883]
[1746215592083,7.98108,1837.0,1836.9,1.6394]
[1746215593287,7.98108,1837.0,1836.9,2.7277]
[1746215593483,6.8928,1837.0,1836.9,2.7277]
[1746215593685,7.98104,1837.0,1836.9,2.7277]
[1746215594182,7.98104,1837.0,1836.9,1.6394]
[1746215594379,7.98104,1837.0,1836.9,2.7277]
[1746215595089,7.98104,1837.0,1836.9,1.6394]
[1746215595881,3.2078,1837.0,1836.9,2.7277]
[1746215596981,4.29604,1837.0,1836.9,2.7277]
[1746215597188,3.2078,1837.0,1836.9,2.7277]
[1746215597484,4.29604,1837.0,1836.9,2.7277]
[1746215597885,3.2078,1837.0,1836.9,2.7277]
[1746215599275,4.29604,1837.0,1836.9,2.7277]
[1746215600787,3.2078,1837.0,1836.9,2.7277]
[1746215601682,1.08821,1837.1,1837.0,1.08824]
[1746215601990,1.08821,1837.1,1837.0,4.55904]
[1746215603592,4.29597,1837.2,1837.1,1.08818]
[1746215603789,4.29597,1837.2,1837.1,2.80238]
[1746215606893,4.29597,1837.2,1837.1,1.7142]
[1746215607189,4.29597,1837.2,1836.7,1.96036]
[1746215607190,1.08835,1836.8,1836.7,1.96036]
[1746215607389,3.2078,1836.9,1836.8,2.77072]
[1746215607791,4.2961,1836.9,1836.8,2.77072]
[1746215607993,3.2078,1836.9,1836.8,2.77072]
[1746215608194,1.08828,1837.0,1836.9,1.0883]
[1746215608389,1.08828,1837.0,1836.9,2.7707]
[1746215608886,1.08835,1836.9,1836.8,1.0883]
[1746215609192,3.2078,1836.9,1836.8,1.0883]
[1746215609591,3.2078,1836.9,1836.8,2.7707]
[1746215609888,4.2961,1836.9,1836.8,1.6824]
[1746215610293,1.08841,1836.7,1836.6,0.8341]
[1746215610592,4.29621,1836.7,1836.6,2.5114]
[1746215610891,4.29621,1836.7,1836.6,3.59987]
[1746215611991,4.29621,1836.7,1836.6,2.5114]
[1746215612192,4.29621,1836.7,1836.6,3.59987]
[1746215612793,4.29621,1836.7,1836.6,2.5114]
[1746215615492,4.29621,1836.7,1836.6,3.59987]
[1746215616190,2.72085,1836.9,1836.8,1.08835]
[1746215616191,4.29614,1836.9,1836.8,1.08835]
[1746215617892,1.08835,1836.8,1836.7,2.82676]
[1746215618089,1.08835,1836.8,1836.7,1.7384]
[1746215618993,2.79555,1836.8,1836.7,1.7384]
[1746215620289,1.08847,1836.6,1836.5,40.8]
[1746215620489,4.29627,1836.6,1836.5,40.8]
[1746215620798,4.29627,1836.6,1836.5,43.51223]
[1746215621297,1.08842,1836.7,1836.6,1.08847]
[1746215621495,3.2078,1837.0,1836.9,1.0883]
[1746215621699,5.37800129,1837.1,1837.0,1.08824]
[1746215621997,8.58580129,1837.1,1837.0,1.08824]
[1746215622487,5.37800129,1837.1,1837.0,1.08824]
[1746215622894,8.96333549,1837.1,1837.0,1.08824]
[1746215623291,10.05151549,1837.1,1837.0,2.83654]
[1746215623685,8.96333549,1837.1,1837.0,2.83654]
[1746215624698,10.05151549,1837.1,1837.0,2.83654]
[1746215625796,10.05151549,1837.1,1837.0,1.7483]
[1746215626299,10.05151549,1837.1,1837.0,2.83654]
[1746215627102,10.05151549,1837.1,1837.0,1.7483]
[1746215627602,2.72089,1836.9,1836.5,40.8]
[1746215627900,1.08841,1836.7,1836.6,2.78126]
[1746215628094,1.08859,1836.4,1836.3,1.94381]
[1746215628298,1.08859,1836.4,1836.3,0.8552]
[1746215628500,4.29638,1836.5,1836.4,1.08859]
[1746215628697,3.2078,1836.5,1836.4,1.08859]
[1746215629295,4.29633,1836.5,1836.4,1.08859]
[1746215629499,4.29633,1836.5,1836.4,2.80069]
[1746215630202,3.2078,1836.5,1836.4,2.80069]
[1746215631304,3.57714612,1836.6,1836.5,1.08853]
[1746215631502,4.66561612,1836.6,1836.5,2.74163]
[1746215631697,7.87341612,1836.6,1836.5,2.74163]
[1746215632102,6.78494612,1836.6,1836.5,2.74163]
[1746215632710,7.87341612,1836.6,1836.5,2.74163]
[1746215633003,4.66561612,1836.6,1836.5,2.74163]
[1746215633805,7.87341612,1836.6,1836.5,2.74163]
[1746215634107,7.87341612,1836.6,1836.5,1.6531]
[1746215634300,7.87341612,1836.6,1836.5,2.74163]
[1746215634610,3.2078,1836.6,1836.5,2.74163]
[1746215634801,4.29627,1836.6,1836.5,2.74163]
[1746215635207,3.2078,1836.6,1836.5,2.74163]
[1746215636508,3.57714612,1836.7,1836.6,1.08847]
[1746215636702,3.57714612,1836.7,1836.6,3.58277]
[1746215637703,6.78494612,1836.8,1836.7,1.08841]
[1746215637909,7.87329612,1836.8,1836.7,3.70121]
[1746215640913,7.87329612,1836.8,1836.7,2.6128]
[1746215641104,7.87329612,1836.8,1836.7,3.70121]
[1746215641303,7.87329612,1836.8,1836.7,1.745]
[1746215641504,5.88375,1836.8,1836.7,1.745]
[1746215642407,6.72509,1836.8,1836.6,0.8384]
[1746215642612,6.72509,1836.8,1836.7,2.67391]
[1746215642808,6.72509,1836.8,1836.7,1.5855]
[1746215643317,1.08841,1836.7,1836.6,0.8384]
[1746215643519,1.08847,1836.6,1836.5,1.6367]
[1746215643720,4.29627,1836.6,1836.5,2.72523]
[1746215644223,6.02457,1836.6,1836.5,2.72523]
[1746215644816,4.29627,1836.6,1836.5,2.72523]
[1746215645219,3.2078,1836.6,1836.5,2.72523]
[1746215646617,4.29627,1836.6,1836.5,2.72523]
[1746215647016,4.29627,1836.6,1836.5,1.6367]
[1746215647320,4.29627,1836.6,1836.5,2.72523]
[1746215647721,3.2078,1836.6,1836.5,2.72523]
[1746215648125,9.26768236,1836.8,1836.7,1.08841]
[1746215648321,10.35603236,1836.8,1836.7,1.08841]
[1746215648521,9.66186919,1836.8,1836.7,2.73961]
[1746215649724,8.57351919,1836.8,1836.7,2.73961]
[1746215649924,9.66186919,1836.8,1836.7,2.73961]
[1746215650220,5.36571919,1836.8,1836.7,2.73961]
[1746215650422,5.36571919,1836.8,1836.7,5.94741]
[1746215650624,5.36571919,1836.8,1836.7,10.94741]
[1746215650815,7.15429225,1836.9,1836.7,10.94741]
[1746215651019,4.72438144,1836.9,1836.8,4.72635]
[1746215651228,3.09022144,1836.9,1836.8,10.64235]
[1746215651419,1.44e-06,1836.9,1836.8,15.66235]
[1746215651620,7.74615693,1837.0,1836.9,1.0883]
[1746215651820,7.74615693,1837.0,1836.9,4.2961]
[1746215652020,7.74615693,1837.0,1836.9,9.2961]
[1746215652222,6.15698693,1837.0,1836.9,9.2961]
[1746215652523,1.77821693,1837.0,1836.9,50.0961]
[1746215652922,2.38599251,1837.2,1837.1,1.08818]
[1746215653128,1.77821693,1837.6,1837.5,1.08794]
[1746215653432,1.77821693,1837.6,1837.5,4.72594]
[1746215653629,1.77821693,1837.6,1837.5,50.52594]
[1746215654129,1.77821693,1837.6,1837.5,52.20854]
[1746215654333,0.41950693,1837.6,1837.5,52.20854]
[1746215654636,6.93e-06,1837.6,1837.5,52.20854]
[1746215655629,6.93e-06,1837.6,1837.5,47.20854]
[1746215656225,6.93e-06,1837.6,1837.5,48.05094]
[1746215656729,14.1078354,1837.9,1837.5,48.05094]
[1746215656730,2.70835,1837.9,1837.5,48.05094]
[1746215656923,2.70834,1837.9,1837.6,1.7466]
[1746215657123,2.70834,1837.9,1837.8,1.08776]
[1746215657323,1.08777,1837.8,1837.7,1.08778]
[1746215657521,2.70837,1837.8,1837.7,1.08778]
[1746215658131,1.6206,1837.8,1837.7,1.08778]
[1746215658432,1.08762,1838.1,1838.0,1.08761]
[1746215658634,1.95337,1838.2,1838.1,1.08758]
[1746215658829,0.8658,1838.2,1838.1,1.08758]
[1746215659034,1.95333,1838.2,1838.1,1.08758]
[1746215660226,0.8658,1838.2,1838.1,1.08758]
[1746215660740,4.29524,1838.4,1838.3,1.08747]
[1746215661036,3.2078,1838.4,1838.3,1.08747]
[1746215661425,4.29521,1838.4,1838.3,1.08747]
[1746215661632,1.08747,1838.3,1838.2,2.72299]
[1746215662734,1.08747,1838.3,1838.2,1.6355]
[1746215662930,1.08753,1838.2,1838.1,3.636]
[1746215663536,1.08753,1838.2,1838.1,4.72358]
[1746215663734,1.08753,1838.2,1838.1,3.636]
[1746215664335,4.38378,1838.3,1837.9,1.08769]
[1746215664539,1.0877,1837.9,1837.8,5.3899]
[1746215665035,3.69699,1838.0,1837.9,1.0877]
[1746215665428,3.2078,1838.5,1837.9,1.0877]
[1746215665624,3.2078,1838.5,1838.3,1.08747]
[1746215665625,4.57294,1838.4,1838.3,1.08747]
[1746215666331,3.4855,1838.4,1838.3,1.08747]
[1746215666531,4.57291,1838.4,1838.3,1.08747]
[1746215666936,4.57291,1838.4,1838.2,2.74637]
[1746215666937,1.08747,1838.3,1838.2,2.74637]
[1746215667137,2.82407,1838.3,1838.2,2.74637]
[1746215667532,1.7366,1838.3,1838.2,2.74637]
[1746215667732,4.29512,1838.6,1838.5,1.08729]
[1746215667941,2.67412,1838.6,1838.5,1.08729]
[1746215668238,5.88192,1838.6,1838.5,1.08729]
[1746215668440,2.67412,1838.6,1838.5,1.08729]
[1746215668835,5.88192,1838.6,1838.5,1.08729]
[1746215670840,2.67412,1838.6,1838.5,1.08729]
[1746215671036,1.5868,1838.6,1838.5,1.08729]
[1746215671637,2.67409,1838.6,1838.5,1.08729]
[1746215672040,1.08729,1838.6,1838.5,1.08729]
[1746215672240,2.67499,1838.6,1838.5,1.08729]
[1746215673348,1.08735,1838.5,1838.4,2.83325]
[1746215673639,4.35065,1838.5,1838.4,1.08735]
[1746215673842,3.2633,1838.5,1838.4,1.08735]
[1746215674644,4.35065,1838.5,1838.4,1.08735]
[1746215674942,3.2633,1838.5,1838.4,1.08735]
[1746215675340,1.6756,1838.5,1838.4,1.08735]
[1746215676745,4.45465,1838.5,1838.4,1.08735]
[1746215678936,1.08747,1838.4,1838.2,3.2078]
[1746215679133,2.72737,1838.3,1838.2,4.29528]
[1746215679341,2.72737,1838.3,1838.2,1.08753]
[1746215679645,1.08764,1838.1,1838.0,1.08761]
[1746215680347,1.6452,1838.1,1838.0,1.08761]
[1746215680845,1.6452,1838.1,1838.0,2.80341]
[1746215681046,3.3465,1838.1,1838.0,2.80341]
[1746215681345,4.43408,1838.1,1838.0,1.08761]
[1746215681541,3.3465,1838.1,1838.0,1.08761]
[1746215681846,1.08751,1838.3,1838.2,1.08748]
[1746215682045,4.47881,1838.3,1838.2,1.08748]
[1746215682946,3.3913,1838.3,1838.2,1.08748]
[1746215683438,1.08753,1838.2,1838.1,1.08754]
[1746215683645,2.72803,1838.2,1838.1,1.08754]
[1746215684849,1.6405,1838.2,1838.1,1.08754]